bitfinex/quotes_ETHUSD_20241207
["timestamp","ask_amount","ask_price","bid_price","bid_amount"]
[1733613455590,1.44134317,4003.2,4002.5,0.03143504]
[1733613459363,1.07646015,4002.9,4002.5,0.03143504]
[1733613459567,1.90036015,4002.6,4001.7,2.52905]
[1733613459882,1.90036015,4002.6,4001.8,0.03110465]
[1733613460201,2.09039617,4002.6,4001.8,0.03110465]
[1733613462215,0.8239,4002.2,4001.8,0.03110465]
[1733613462570,0.8239,4002.2,4001.4,0.7798]
[1733613462866,0.8239,4002.2,4001.5,0.03110465]
[1733613470580,0.8239,4002.2,4001.5,0.03110465]
[1733613471575,0.8239,4002.2,4001.2,1.74947]
[1733613471790,0.8239,4002.2,4001.3,0.03149639]
[1733613473281,0.19003602,4002.1,4001.3,0.03149639]
[1733613473780,0.19003602,4002.1,4001.3,1.78091639]
[1733613476782,0.19003602,4002.1,4001.3,0.03149639]
[1733613476978,0.7934,4002.0,4001.1,1.74951]
[1733613477197,0.2732476,4001.9,4001.2,0.03194066]
[1733613477914,0.7934,4001.8,4001.2,0.03194066]
[1733613480187,0.7934,4002.8,4001.6,1.07646015]
[1733613480495,0.7934,4002.8,4002.0,2.29908]
[1733613480900,0.7934,4002.8,4002.1,0.03107237]
[1733613482094,0.18698602,4002.7,4002.1,0.03107237]
[1733613482418,0.7985,4002.6,4002.2,0.03107237]
[1733613482618,0.7985,4002.6,4001.9,0.55]
[1733613482919,0.7985,4002.6,4002.0,0.0310055]
[1733613485301,0.7985,4002.6,4002.1,0.55]
[1733613485483,0.36488302,4003.2,4002.6,0.55]
[1733613485688,0.23467582,4003.1,4002.6,0.55]
[1733613485914,0.23467582,4003.1,4002.7,0.03081913]
[1733613487253,0.818,4003.3,4002.7,0.03081913]
[1733613487254,0.18681997,4003.2,4002.7,0.03081913]
[1733613487555,0.818,4003.7,4003.0,0.55]
[1733613487754,0.1867988,4003.6,4003.0,0.55]
[1733613487960,0.818,4003.7,4003.1,0.03073313]
[1733613488162,0.818,4003.7,4003.2,0.55]
[1733613488163,0.218222,4003.4,4003.2,0.55]
[1733613488455,0.818,4003.7,4003.2,0.55]
[1733613488654,0.818,4003.7,4003.3,0.03073313]
[1733613494035,0.818,4003.7,4002.9,2.29872]
[1733613494225,0.818,4003.7,4003.4,0.03032706]
[1733613494450,1.32559597,4003.5,4003.4,0.03032706]
[1733613494630,1.32559597,4003.5,4002.9,2.29872]
[1733613494827,1.32559597,4003.5,4003.0,0.03032706]
[1733613495573,1.32559597,4003.5,4003.1,0.55]
[1733613496252,1.32559597,4003.5,4003.2,0.03032706]
[1733613496640,1.32559597,4003.5,4003.1,0.55]
[1733613496862,1.32559597,4003.5,4003.3,0.03032706]
[1733613497070,1.32559597,4003.5,4003.1,0.55]
[1733613497427,1.32559597,4003.5,4003.2,0.03032706]
[1733613497764,1.32559597,4003.5,4003.1,0.55]
[1733613497968,1.32559597,4003.5,4003.3,0.03032706]
[1733613498268,1.32559597,4003.5,4003.4,0.03032706]
[1733613498933,1.32559597,4003.5,4003.1,0.55]
[1733613499144,1.13072361,4003.5,4003.4,0.03032706]
[1733613499363,1.13072361,4003.5,4003.1,0.55]
[1733613499539,1.13072361,4003.5,4003.4,0.03032706]
[1733613499747,1.13072361,4003.5,4003.1,0.55]
[1733613499948,1.89446015,4003.7,4003.1,0.55]
[1733613499949,1.89446015,4003.7,4003.4,0.03032706]
[1733613500135,2.18836727,4003.7,4003.4,0.03032706]
[1733613500341,2.18836727,4003.7,4002.9,2.29873]
[1733613500856,2.18836727,4003.7,4003.0,0.03032706]
[1733613501867,1.11190712,4003.7,4003.0,0.03032706]
[1733613502078,0.818,4003.7,4003.0,0.03032706]
[1733613503547,0.818,4003.7,4003.1,0.55]
[1733613504146,0.818,4003.7,4002.7,0.8294]
[1733613504147,0.818,4003.7,4003.2,0.03032706]
[1733613504344,1.04461108,4004.0,4003.3,0.55]
[1733613504578,2.08922216,4004.4,4003.7,0.55]
[1733613504579,1.04461108,4004.3,4003.7,0.55]
[1733613504774,0.86349699,4004.2,4003.7,2.29838]
[1733613505081,1.81581108,4004.4,4003.9,0.55]
[1733613505238,0.7712,4004.4,4003.9,0.55]
[1733613506466,1.18991073,4004.4,4003.9,0.55]
[1733613507872,1.17284149,4004.5,4003.9,0.55]
[1733613509587,1.17284149,4004.5,4003.9,2.29829]
[1733613509880,1.17284149,4004.5,4004.0,0.02982552]
[1733613512879,1.07646015,4004.4,4004.0,0.02982552]
[1733613513048,0.7914,4004.3,4004.0,0.02982552]
[1733613513249,0.47887316,4004.2,4004.0,0.02982552]
[1733613513879,1.07646015,4004.1,4004.0,0.02982552]
[1733613514361,0.47887316,4004.2,4004.0,0.02982552]
[1733613516184,0.7914,4004.3,4004.0,0.02982552]
[1733613516596,0.7914,4004.3,4003.6,0.55]
[1733613516796,0.7914,4004.3,4004.1,0.02941485]
[1733613517017,0.7914,4004.3,4003.6,0.55]
[1733613517189,0.7914,4004.3,4004.2,0.02941485]
[1733613517357,1.27026916,4004.3,4003.6,0.55]
[1733613517853,1.27026916,4004.3,4003.7,0.02941485]
[1733613518396,1.17284149,4004.5,4003.9,1.3244]
[1733613518750,1.17284149,4004.5,4004.1,0.55]
[1733613519365,1.17284149,4004.5,4004.2,0.02941485]
[1733613520369,1.17284149,4004.5,4004.0,0.55]
[1733613520567,1.17284149,4004.5,4004.3,0.02843436]
[1733613520788,1.17284149,4004.5,4004.0,0.55]
[1733613520988,1.17284149,4004.5,4004.4,0.02843436]
[1733613521189,1.17284149,4004.5,4004.0,0.55]
[1733613521396,1.17284149,4004.5,4004.4,0.02843436]
[1733613521600,1.17284149,4004.5,4004.0,0.55]
[1733613521781,1.17284149,4004.5,4004.4,0.02843436]
[1733613521986,1.17284149,4004.5,4004.0,0.55]
[1733613522154,1.17284149,4004.5,4004.4,0.02843436]
[1733613522358,1.17284149,4004.5,4004.0,0.55]
[1733613522592,1.17284149,4004.5,4004.4,0.02748654]
[1733613522793,1.5505566,4004.5,4004.0,0.55]
[1733613522959,1.17284149,4004.5,4004.0,0.55]
[1733613523157,1.17284149,4004.5,4004.1,0.02748654]
[1733613526576,1.30997545,4004.7,4004.1,0.02748654]
[1733613526774,0.86365667,4004.6,4004.0,0.55]
[1733613527002,2.12107123,4004.7,4004.0,0.55]
[1733613527189,0.86365382,4004.6,4004.1,0.02748654]
[1733613527390,1.69918994,4004.7,4004.1,0.02748654]
[1733613527740,0.86377788,4004.6,4004.1,0.02748654]
[1733613527884,1.69918994,4004.7,4004.1,0.02748654]
[1733613528089,0.86376551,4004.6,4004.1,0.02748654]
[1733613528412,0.86376551,4004.6,4004.0,0.55]
[1733613528413,0.61468765,4004.6,4004.0,0.55]
[1733613528719,0.61468765,4004.6,4004.1,0.02748654]
[1733613529090,0.61468765,4004.6,4004.0,0.55]
[1733613529481,0.86412477,4004.5,4004.1,0.02730991]
[1733613529682,0.61468765,4004.6,4004.1,0.02730991]
[1733613529882,0.86412917,4004.5,4004.0,0.55]
[1733613530082,0.61468765,4004.6,4004.0,0.55]
[1733613530384,0.8641292,4004.5,4004.0,0.55]
[1733613530598,1.65929873,4004.6,4004.1,0.02730991]
[1733613530799,2.16086145,4004.5,4004.0,0.55]
[1733613530998,1.65929873,4004.6,4004.0,0.55]
[1733613531199,3.39243145,4004.5,4004.0,0.55]
[1733613531411,2.16123886,4004.4,4004.1,0.02730991]
[1733613531610,0.86434277,4004.3,4004.0,0.55]
[1733613531822,0.86460375,4004.2,4004.0,0.55]
[1733613532021,1.04461108,4004.4,4004.1,0.02730991]
[1733613532322,3.20609558,4004.3,4004.0,0.55]
[1733613532481,2.1614845,4004.2,4004.0,0.55]
[1733613532677,2.1614845,4004.2,4003.5,1.74846]
[1733613532678,0.8645938,4004.1,4003.6,0.55]
[1733613532878,1.79711108,4004.3,4004.1,0.02730991]
[1733613533111,2.34898161,4004.2,4003.6,0.55]
[1733613533295,3.20784257,4004.1,4003.6,0.55]
[1733613533508,0.86493482,4004.0,4003.6,0.55]
[1733613533816,1.04588814,4004.1,4003.6,0.55]
[1733613534024,0.86493116,4004.0,4003.6,0.55]
[1733613534211,1.04588814,4004.2,4003.6,0.55]
[1733613534518,3.39540411,4004.1,4003.6,0.55]
[1733613534716,0.8649413,4004.0,4003.6,0.55]
[1733613534918,1.04588814,4004.1,4003.6,0.55]
[1733613535090,0.86500376,4004.0,4003.6,0.55]
[1733613535280,1.04588814,4004.1,4003.6,0.55]
[1733613535482,0.86506955,4004.0,4003.6,0.55]
[1733613535681,1.04588814,4004.1,4003.6,0.55]
[1733613535912,0.86507796,4004.0,4003.6,0.55]
[1733613536117,1.04588814,4004.1,4003.6,0.55]
[1733613536296,2.63658435,4004.0,4003.6,0.55]
[1733613536497,0.86507822,4003.9,4003.6,0.55]
[1733613536724,1.51973855,4004.0,4003.6,0.55]
[1733613536925,2.16291934,4003.9,4003.6,0.55]
[1733613537097,0.86516653,4003.8,4003.6,0.55]
[1733613537296,1.04588814,4004.0,4003.6,0.55]
[1733613537484,2.16305173,4003.9,4003.6,0.55]
[1733613537821,0.86522069,4003.8,4003.6,0.55]
[1733613537997,1.04588814,4004.0,4003.6,0.55]
[1733613538196,2.16302943,4003.9,4003.6,0.55]
[1733613538394,0.86523729,4003.8,4003.6,0.55]
[1733613538717,1.53037973,4004.0,4003.6,0.55]
[1733613539020,2.16316265,4003.9,4003.6,0.55]
[1733613539220,2.16316438,4003.8,4003.6,0.55]
[1733613539520,2.16323493,4003.7,4003.6,0.55]
[1733613539727,0.86527375,4003.7,4003.6,0.55]
[1733613542118,2.16336179,4003.7,4003.6,0.57545959]
[1733613542327,0.86527375,4003.7,4003.6,0.57545959]
[1733613542823,2.1634612,4003.7,4003.6,0.57545959]
[1733613544135,3.20934934,4003.7,4003.6,0.02545959]
[1733613544300,3.20934934,4003.7,4003.2,0.7857]
[1733613544301,3.20934934,4003.7,4003.3,0.55]
[1733613544501,3.21041922,4003.6,4003.3,0.55]
[1733613544698,0.86527375,4003.5,4003.4,0.02563623]
[1733613545408,2.16375448,4003.5,4003.4,0.02563623]
[1733613545611,2.1638666,4003.5,4003.4,0.02563623]
[1733613545796,2.1638666,4003.5,4003.3,0.55]
[1733613546005,1.04695802,4003.6,4003.4,0.02563623]
[1733613546308,2.16429006,4003.5,4003.4,0.02563623]
[1733613546525,2.16452298,4003.5,4003.4,0.02563623]
[1733613549594,3.211481,4003.5,4003.4,0.02563623]
[1733613550492,2.16452298,4003.5,4003.4,0.02563623]
[1733613551434,2.16458361,4003.5,4003.4,0.02563623]
[1733613551991,3.21154163,4003.5,4003.4,0.02563623]
[1733613552192,3.21159633,4003.5,4003.3,0.55]
[1733613552391,3.21157571,4003.4,4003.3,0.55]
[1733613552627,2.16458361,4003.4,4003.3,0.55]
[1733613552887,0.86583344,4003.4,4003.3,0.55]
[1733613553132,1.0469921,4003.6,4003.3,2.73212]
[1733613553432,1.0469921,4003.9,4003.5,0.55]
[1733613553637,2.16408643,4003.8,4003.5,0.55]
[1733613553793,1.0469921,4004.0,4003.5,0.55]
[1733613553998,2.1640339,4003.9,4003.4,2.29851]
[1733613554197,0.86561356,4003.8,4003.6,0.55]
[1733613554397,1.0469921,4004.0,4003.6,0.55]
[1733613554717,2.1640893,4003.9,4003.6,0.55]
[1733613554930,0.86563572,4003.8,4003.6,0.55]
[1733613555109,1.0469921,4004.0,4003.6,0.55]
[1733613555305,2.16410335,4003.9,4003.6,0.55]
[1733613555517,0.86564134,4003.8,4003.6,0.55]
[1733613555699,1.0469921,4004.0,4003.6,0.55]
[1733613555901,2.16410809,4003.9,4003.6,0.55]
[1733613556201,1.0469921,4004.0,4003.6,0.55]
[1733613556427,0.86564886,4003.9,4003.6,0.55]
[1733613556623,1.0469921,4004.0,4003.6,0.55]
[1733613556839,2.16413704,4003.9,4003.6,0.55]
[1733613556997,1.0469921,4004.0,4003.6,0.55]
[1733613557339,2.16415795,4003.9,4003.7,0.024874]
[1733613557497,3.98627542,4003.8,4003.7,0.024874]
[1733613557700,3.98627542,4003.8,4003.1,0.7818]
[1733613558028,0.86566318,4003.7,4003.2,0.55]
[1733613558340,0.86572856,4003.6,4003.2,0.55]
[1733613558495,0.86572856,4003.5,4003.2,0.55]
[1733613558698,0.42547373,4003.5,4002.7,0.7818]
[1733613559039,2.16444553,4003.4,4002.7,0.7818]
[1733613559247,2.1645134,4003.3,4002.7,0.7818]
[1733613559533,1.0469921,4003.4,4002.7,0.7818]
[1733613559733,2.16434837,4003.3,4002.7,0.7818]
[1733613559942,1.0469921,4003.4,4002.7,0.7818]
[1733613560114,0.86573865,4003.3,4002.7,0.7818]
[1733613560443,1.0469921,4003.4,4002.8,0.55]
[1733613560644,0.8656639,4003.3,4002.8,0.55]
[1733613560799,1.52577335,4003.4,4002.8,0.55]
[1733613560995,0.86567148,4003.3,4002.8,0.55]
[1733613561200,0.47878125,4003.4,4002.8,0.55]
[1733613561396,1.64076468,4003.3,4002.3,1.04071922]
[1733613561608,1.74864,4003.1,4002.5,0.55]
[1733613562040,0.86566071,4003.0,4002.5,0.55]
[1733613562252,2.7956321,4003.1,4002.5,0.55]
[1733613562543,0.86568379,4003.0,4002.5,0.55]
[1733613562758,1.74864,4003.1,4002.5,0.55]
[1733613562932,0.86549604,4003.0,4002.5,0.55]
[1733613563135,2.35696772,4003.1,4002.5,0.55]
[1733613563338,0.86550015,4003.0,4002.5,0.55]
[1733613563544,2.35696772,4003.1,4002.5,0.55]
[1733613564047,0.86536791,4003.0,4002.5,0.55]
[1733613564252,1.0469921,4003.4,4002.6,0.7952]
[1733613564557,0.8652945,4003.3,4002.7,0.55]
[1733613564769,1.0469921,4003.5,4002.7,0.55]
[1733613565047,3.21008917,4003.4,4002.7,0.55]
[1733613565244,0.86523883,4003.3,4002.7,0.55]
[1733613565450,1.0469921,4003.4,4002.7,0.55]
[1733613565749,2.16221642,4003.3,4002.7,0.55]
[1733613565960,1.0469921,4003.4,4002.7,0.55]
[1733613566245,3.20910506,4003.3,4002.7,0.55]
[1733613566454,0.86483785,4003.2,4002.7,0.55]
[1733613566657,1.0469921,4003.4,4002.7,0.55]
[1733613566806,2.1619522,4003.3,4002.7,0.55]
[1733613567014,0.86478088,4003.2,4002.7,0.55]
[1733613567212,1.0469921,4003.4,4002.7,0.55]
[1733613567447,2.16200448,4003.3,4002.7,0.55]
[1733613567787,1.0469921,4003.4,4002.7,0.55]
[1733613567969,2.161973,4003.3,4002.7,0.55]
[1733613568113,1.60682034,4003.4,4002.7,0.55]
[1733613568314,2.1619609,4003.3,4002.7,0.55]
[1733613568515,0.86476198,4003.2,4002.7,0.55]
[1733613568748,1.60682034,4003.4,4002.7,0.55]
[1733613568950,0.53359706,4003.3,4002.7,0.55]
[1733613569170,0.86475241,4003.2,4002.7,0.55]
[1733613569337,0.53359706,4003.3,4002.7,0.55]
[1733613570843,0.86473471,4003.2,4002.7,0.55]
[1733613571072,0.53359706,4003.3,4002.7,0.55]
[1733613571392,0.86475412,4003.2,4002.7,0.55]
[1733613571547,2.20936069,4003.2,4002.7,0.55]
[1733613571747,3.01046069,4003.2,4002.7,0.55]
[1733613572261,3.01046069,4003.2,4002.8,0.02422556]
[1733613572778,3.01046069,4003.2,4002.7,0.55]
[1733613572941,3.01046069,4003.2,4002.9,0.02456936]
[1733613573142,0.40574528,4003.1,4002.7,0.55]
[1733613573338,0.40574528,4003.1,4003.0,0.02456936]
[1733613573561,0.40574528,4003.1,4002.7,0.55]
[1733613573776,2.5497,4003.2,4003.0,0.02456936]
[1733613573953,2.5497,4003.2,4002.7,0.55]
[1733613574161,2.5497,4003.2,4003.1,0.02456936]
[1733613574360,3.4145519,4003.2,4002.7,0.55]
[1733613574566,2.5497,4003.2,4003.1,0.02456936]
[1733613574766,3.97233981,4003.2,4002.7,0.55]
[1733613574959,3.10743624,4003.2,4003.1,0.02456936]
[1733613575285,3.97231133,4003.2,4002.7,0.55]
[1733613575487,3.10743624,4003.2,4002.7,0.55]
[1733613575692,3.10743624,4003.2,4002.8,0.02456936]
[1733613576054,0.41544283,4003.1,4002.7,0.55]
[1733613576254,0.41544283,4003.1,4002.6,0.7952]
[1733613576564,2.16409283,4003.1,4002.4,0.55]
[1733613576762,0.86496752,4003.0,4002.7,0.02460755]
[1733613577003,2.11735387,4002.9,4002.3,0.7625]
[1733613577203,2.11735387,4002.9,4002.8,0.02460755]
[1733613577385,2.98233027,4002.9,4002.3,0.7625]
[1733613577719,2.11735387,4002.9,4002.8,0.02460755]
[1733613577863,4.27981246,4002.9,4002.3,0.7625]
[1733613578066,1.43920815,4002.8,4002.3,0.7625]
[1733613578276,0.86493739,4002.7,4002.4,0.02460755]
[1733613578504,0.57422474,4002.8,4002.3,0.7625]
[1733613578668,0.86486655,4002.7,4002.1,0.55]
[1733613579012,0.57422474,4002.8,4002.1,0.55]
[1733613579209,0.86490316,4002.7,4002.2,0.02460755]
[1733613579371,0.57422474,4002.8,4002.2,0.02460755]
[1733613579705,1.74896,4002.4,4002.2,0.02460755]
[1733613580075,1.74896,4002.4,4001.7,0.7625]
[1733613580331,1.74896,4002.4,4002.3,0.02460755]
[1733613580613,1.74896,4002.4,4001.7,0.7625]
[1733613580763,1.74896,4002.4,4002.3,0.02460755]
[1733613580966,2.14870092,4002.4,4001.7,0.7625]
[1733613581197,1.74896,4002.4,4002.3,0.02460755]
[1733613581403,1.74896,4002.4,4001.8,0.55]
[1733613581612,1.74896,4002.4,4002.3,0.02460755]
[1733613581912,1.74896,4002.4,4001.8,0.55]
[1733613582272,1.74896,4002.4,4001.9,0.02460755]
[1733613582472,2.14870092,4002.4,4001.9,0.02460755]
[1733613585070,0.39974092,4002.4,4001.9,0.02460755]
[1733613585271,2.57646,4002.6,4001.9,0.02460755]
[1733613586485,1.0469921,4002.9,4002.4,0.55]
[1733613586813,1.56691662,4003.1,4002.4,0.55]
[1733613586814,1.0469921,4003.1,4002.4,0.55]
[1733613587113,1.0469921,4003.1,4002.3,0.55]
[1733613587114,0.86401084,4003.0,4002.3,0.55]
[1733613587413,1.0469921,4003.2,4002.5,0.7707]
[1733613587711,1.0469921,4003.3,4002.6,0.55]
[1733613587922,1.0469921,4003.4,4002.6,0.57377282]
[1733613588226,2.1602983,4003.3,4002.6,0.55]
[1733613588518,1.0469921,4003.4,4002.6,0.55]
[1733613588683,2.16039852,4003.3,4002.6,0.55]
[1733613588874,0.86416852,4003.2,4002.6,0.55]
[1733613589072,1.0469921,4003.4,4002.6,0.55]
[1733613589272,2.16037681,4003.3,4002.6,0.55]
[1733613589515,0.86415072,4003.2,4002.6,0.55]
[1733613589807,1.0469921,4003.3,4002.6,0.55]
[1733613590014,0.86422512,4003.2,4002.6,0.55]
[1733613590224,1.8008921,4003.5,4002.6,0.55]
[1733613590376,4.24590548,4003.4,4002.6,0.55]
[1733613590580,1.74874,4002.9,4002.7,0.02397345]
[1733613590884,1.74874,4002.9,4002.0,0.7651]
[1733613590885,2.52604,4002.9,4002.0,0.7651]
[1733613591291,2.52604,4002.9,4002.1,0.02410719]
[1733613591830,2.52604,4002.9,4002.1,0.57410719]
[1733613593211,3.04003487,4002.9,4002.1,0.57410719]
[1733613595518,1.74878,4002.8,4002.1,0.57410719]
[1733613598226,0.86416988,4002.7,4002.1,0.57410719]
[1733613598525,1.74891,4002.5,4002.1,0.02410719]
[1733613600424,1.74891,4002.5,4002.0,0.7651]
[1733613600829,1.74891,4002.5,4002.1,0.02269881]
[1733613601148,2.02850021,4002.5,4001.6,0.8222]
[1733613601355,2.02850021,4002.5,4001.7,0.55]
[1733613601508,2.02850021,4002.5,4002.2,0.02269881]
[1733613601812,2.02850021,4002.5,4001.7,0.55]
[1733613602198,2.02850021,4002.5,4001.8,0.02269881]
[1733613604344,0.86476648,4002.4,4001.8,0.02269881]
[1733613604553,3.07549231,4002.5,4001.8,0.02269881]
[1733613604707,3.07549231,4002.5,4001.7,0.55]
[1733613604708,1.32909984,4002.4,4001.7,0.52269881]
[1733613604902,0.46424089,4002.4,4001.7,0.52269881]
[1733613607040,2.21319089,4002.4,4001.7,0.52269881]
[1733613607443,2.21319089,4002.4,4001.7,0.47269881]
[1733613608003,2.21319089,4002.4,4001.7,1.54915896]
[1733613608245,1.0469921,4002.5,4001.8,0.7817]
[1733613608417,2.16220023,4002.4,4001.8,0.7817]
[1733613608751,1.0469921,4002.5,4001.8,0.7817]
[1733613608752,0.86489925,4002.3,4001.8,0.7817]
[1733613608931,1.0469921,4002.5,4001.8,0.7817]
[1733613609138,2.1619874,4002.4,4001.8,0.7817]
[1733613609311,0.86479496,4002.3,4001.8,0.7817]
[1733613609512,1.0469921,4002.5,4001.8,0.7817]
[1733613609708,2.16200147,4002.4,4001.8,0.7817]
[1733613610026,0.86480059,4002.3,4001.8,0.7817]
[1733613610225,1.63444731,4002.5,4001.8,0.7817]
[1733613610465,2.16208836,4002.4,4001.8,0.7817]
[1733613610672,0.86483534,4002.3,4001.8,0.7817]
[1733613610827,1.63444731,4002.5,4001.8,0.7817]
[1733613611028,2.16186856,4002.4,4001.8,0.7817]
[1733613611232,0.86474742,4002.3,4001.8,0.7817]
[1733613611425,1.63444731,4002.5,4001.8,0.7817]
[1733613611654,2.1617239,4002.4,4001.8,0.7817]
[1733613611967,1.63444731,4002.5,4001.8,0.7817]
[1733613612366,0.86476018,4002.4,4001.8,0.7817]
[1733613612538,1.63444731,4002.5,4001.8,0.7817]
[1733613612539,0.86476899,4002.3,4001.8,0.7817]
[1733613612743,1.63444731,4002.5,4001.8,0.7817]
[1733613612951,2.65683199,4002.4,4001.8,0.7817]
[1733613613166,0.86472464,4002.3,4001.8,0.7817]
[1733613613366,1.0469921,4002.5,4001.8,0.7817]
[1733613613680,2.16158212,4002.4,4001.8,0.7817]
[1733613613974,0.86463285,4002.3,4001.8,0.7817]
[1733613614170,1.0469921,4002.4,4001.8,0.7817]
[1733613614477,2.16164127,4002.3,4001.8,0.7817]
[1733613614661,1.0469921,4002.4,4001.8,0.7817]
[1733613614835,2.1616783,4002.3,4001.8,0.7817]
[1733613615035,1.0469921,4002.4,4001.8,0.7817]
[1733613615236,2.16170038,4002.3,4001.8,0.7817]
[1733613615427,0.86468015,4002.2,4001.8,0.7817]
[1733613615628,1.0469921,4002.4,4001.8,0.7817]
[1733613615827,2.16170827,4002.3,4001.8,0.7817]
[1733613616067,0.86468331,4002.2,4001.8,0.7817]
[1733613616275,1.0469921,4002.4,4001.8,0.7817]
[1733613616435,2.16173748,4002.3,4001.8,0.7817]
[1733613616632,0.8647302,4002.2,4001.8,0.7817]
[1733613616848,1.74884,4002.7,4001.8,0.7817]
[1733613616849,1.0469921,4002.3,4001.8,0.7817]
[1733613617051,3.83806216,4002.7,4001.8,0.7817]
[1733613617052,0.86473095,4002.2,4001.8,0.7817]
[1733613617246,1.0469921,4002.4,4001.8,0.7817]
[1733613617449,3.20884995,4002.3,4001.8,0.7817]
[1733613617633,1.0469921,4002.4,4001.8,0.7817]
[1733613617851,2.16200338,4002.3,4001.8,0.7817]
[1733613618089,1.0469921,4002.4,4001.8,0.7817]
[1733613618268,2.16204618,4002.3,4001.8,0.7817]
[1733613618494,0.86481847,4002.2,4001.8,0.7817]
[1733613618665,1.0469921,4002.3,4001.8,0.7817]
[1733613618864,0.86483716,4002.2,4001.8,0.7817]
[1733613619065,1.0469921,4002.3,4001.8,0.7817]
[1733613619267,0.86482635,4002.2,4001.8,0.7817]
[1733613619490,1.0469921,4002.3,4001.8,0.7817]
[1733613619693,0.86489973,4002.2,4001.8,0.7817]
[1733613619900,1.0469921,4002.4,4001.8,0.7817]
[1733613620104,2.16216708,4002.3,4001.8,0.7817]
[1733613620420,0.86486683,4002.2,4001.8,0.7817]
[1733613620712,0.86496008,4002.1,4001.8,0.7817]
[1733613620870,1.0469921,4002.3,4001.8,0.7817]
[1733613621068,2.16237663,4002.2,4001.8,0.7817]
[1733613621375,2.11234533,4002.1,4001.8,0.7817]
[1733613621577,1.0469921,4002.2,4001.8,0.7817]
[1733613621765,1.29749706,4002.1,4001.8,0.7817]
[1733613621965,1.0469921,4002.2,4001.8,0.7817]
[1733613622191,1.29746328,4002.1,4001.8,0.7817]
[1733613622393,1.0469921,4002.2,4001.8,0.7817]
[1733613622583,1.2975223,4002.1,4001.8,0.7817]
[1733613622791,1.0469921,4002.2,4001.8,0.7817]
[1733613623110,1.0469921,4001.9,4001.2,0.7516]
[1733613623272,1.29734313,4001.8,4001.2,0.7516]
[1733613623611,1.29733947,4001.7,4001.2,0.7516]
[1733613623778,1.0469921,4001.8,4001.2,0.7516]
[1733613623978,1.29736978,4001.7,4001.2,0.7516]
[1733613624216,1.0469921,4001.8,4001.2,0.7516]
[1733613624615,2.08064517,4002.1,4001.2,0.7516]
[1733613624616,1.0469921,4001.9,4001.3,2.44396015]
[1733613624821,1.0469921,4002.1,4001.7,0.8175]
[1733613624974,1.0469921,4002.2,4001.7,0.8175]
[1733613625601,1.0469921,4002.3,4001.7,0.8175]
[1733613625903,2.34430645,4002.2,4001.7,0.8175]
[1733613626108,1.0469921,4002.2,4001.7,0.8175]
[1733613627417,1.0469921,4002.3,4001.7,0.8175]
[1733613627715,1.0469921,4002.3,4001.7,1.18182902]
[1733613627716,1.29724647,4002.2,4001.7,1.18182902]
[1733613627922,1.0469921,4002.5,4002.2,0.8175]
[1733613628135,1.0469921,4002.6,4002.4,0.8175]
[1733613628333,1.0469921,4002.7,4002.4,0.8175]
[1733613628656,1.29734376,4002.6,4002.4,0.8175]
[1733613628809,1.0469921,4002.8,4002.4,0.8175]
[1733613629146,1.29736663,4002.7,4002.4,0.8175]
[1733613629316,1.0469921,4002.9,4002.7,0.55]
[1733613629520,1.0469921,4003.3,4003.0,0.55]
[1733613629706,1.56691662,4003.5,4002.5,0.55]
[1733613629707,1.0469921,4003.5,4003.3,0.55]
[1733613629906,1.0469921,4003.6,4003.5,0.55]
[1733613630139,1.17308187,4003.7,4003.5,0.55]
[1733613630706,1.0469921,4003.9,4003.6,1.74842]
[1733613630905,1.0469921,4004.0,4003.9,0.55]
[1733613631105,1.0469921,4004.1,4003.9,0.55]
[1733613631411,1.0469921,4004.2,4003.9,0.55]
[1733613631611,1.29668339,4004.1,4003.9,0.55]
[1733613631806,1.0469921,4004.2,4003.9,0.55]
[1733613632050,1.0469921,4004.3,4003.9,0.55]
[1733613632219,1.29617991,4004.2,4004.1,0.55]
[1733613632418,1.29617991,4004.2,4003.8,0.7776]
[1733613632624,1.0469921,4004.3,4003.9,2.29828]
[1733613632824,1.29610612,4004.2,4003.9,2.34450467]
[1733613633069,1.0469921,4004.3,4003.9,2.34450467]
[1733613633282,1.0469921,4004.4,4003.9,2.34450467]
[1733613633588,1.29573705,4004.3,4003.9,0.59622467]
[1733613633786,1.0469921,4004.4,4003.9,0.59622467]
[1733613634081,1.29571101,4004.3,4003.9,0.55]
[1733613634287,1.0469921,4004.5,4003.9,0.55]
[1733613634490,1.29534783,4004.4,4003.9,0.55]
[1733613634699,1.0469921,4004.5,4004.1,0.55]
[1733613634848,1.0469921,4004.5,4004.0,0.04622467]
[1733613634849,2.60371107,4004.4,4004.0,0.04622467]
[1733613635046,1.30838297,4004.4,4003.8,0.7776]
[1733613635305,0.26139087,4004.4,4004.1,0.04622467]
[1733613635449,0.26139087,4004.4,4003.8,0.7776]
[1733613636152,0.26139087,4004.4,4003.9,0.04622467]
[1733613636354,2.7950421,4004.5,4003.9,0.04622467]
[1733613636601,1.29476397,4004.4,4003.9,0.04622467]
[1733613636894,2.7950421,4004.5,4003.8,0.7776]
[1733613637069,1.29474688,4004.4,4003.8,0.7776]
[1733613637267,2.7950421,4004.5,4003.8,0.7776]
[1733613637571,1.74805,4004.5,4003.8,0.7776]
[1733613638166,3.04226107,4004.5,4003.8,0.7776]
[1733613638685,1.74805,4004.5,4003.8,0.7776]
[1733613640080,0.7898,4004.2,4003.3,0.55]
[1733613640282,1.74823,4004.1,4003.3,0.55]
[1733613640926,0.7898,4004.2,4003.2,0.7776]
[1733613641212,1.74828,4004.0,4003.3,0.04563727]
[1733613641424,2.23614155,4004.0,4003.3,0.04563727]
[1733613641895,2.23614155,4004.0,4003.2,0.7776]
[1733613642273,2.23614155,4004.0,4003.3,0.04563727]
[1733613642685,2.23614155,4004.0,4003.2,0.7776]
[1733613643079,1.74843,4003.6,4003.3,0.04563727]
[1733613643276,0.26106502,4003.6,4003.3,0.04563727]
[1733613643479,1.74856,4003.3,4002.9,0.7776]
[1733613644381,2.34026787,4003.6,4002.1,0.7645]